fUSD/lending_fUSD_20250812
["ID","MTS","AMOUNT","RATE_DAILY","PERIOD"]
[378819152,1755035466482,-400.0,0.00049589,120]
[378819153,1755035466491,-400.0,0.00049589,120]
[378819154,1755035466500,-400.0,0.00049589,120]
[378819155,1755035466510,-1726.42,0.00049589,120]
[378819156,1755035466519,-402.69,0.00049589,120]
[378819157,1755035466529,-400.0,0.00049589,120]
[378819158,1755035466538,-363.988637,0.00049589,120]
[378819159,1755035466548,-438.73,0.00049589,120]
[378819160,1755035466557,-467.14,0.00049589,120]
[378819161,1755035466566,-400.0,0.00049589,120]
[378819162,1755035466575,-665.88,0.00049589,120]
[378819163,1755035466585,-1396.36,0.00049589,120]
[378819164,1755035466594,-400.0,0.00049589,120]
[378819165,1755035466604,-400.0,0.00049589,120]
[378819166,1755035466613,-151.0,0.00049589,120]
[378819167,1755035466623,-400.0,0.00049589,120]
[378819168,1755035466634,-400.0,0.00049589,120]
[378819169,1755035466643,-400.0,0.00049589,120]
[378819170,1755035466653,-8085.76,0.00049589,120]
[378819171,1755035466662,-400.0,0.00049589,120]
[378819172,1755035466672,-400.0,0.00049589,120]
[378819173,1755035466682,-630.43,0.00049589,120]
[378819174,1755035466692,-400.0,0.00049589,120]
[378819175,1755035466701,-400.0,0.00049589,120]
[378819176,1755035466710,-400.0,0.00049589,120]
[378819177,1755035466720,-1194.25,0.00049589,120]
[378819178,1755035466729,-512.59,0.00049589,120]
[378819179,1755035466738,-1123.98,0.00049589,120]
[378819180,1755035466748,-400.0,0.00049589,120]
[378819181,1755035466757,-2402.18,0.00049589,120]
[378819182,1755035466767,-400.0,0.00049589,120]
[378819183,1755035466776,-400.0,0.00049589,120]
[378819184,1755035466786,-1033.95,0.00049589,120]
[378819185,1755035466795,-400.0,0.00049589,120]
[378819186,1755035466805,-512.12,0.00049589,120]
[378819187,1755035466814,-400.0,0.00049589,120]
[378819188,1755035466823,-400.0,0.00049589,120]
[378819189,1755035466833,-400.0,0.00049589,120]
[378819190,1755035466842,-400.0,0.00049589,120]
[378819191,1755035466851,-400.0,0.00049589,120]
[378819192,1755035466861,-400.0,0.00049589,120]
[378819193,1755035466870,-1554.76,0.00049589,120]
[378819194,1755035466961,-400.0,0.00049589,120]
[378819195,1755035466971,-400.0,0.00049589,120]
[378819196,1755035466980,-400.0,0.00049589,120]
[378819197,1755035466990,-400.0,0.00049589,120]
[378819198,1755035467003,-528.07,0.00049589,120]
[378819199,1755035467014,-400.0,0.00049589,120]
[378819200,1755035467023,-400.0,0.00049589,120]
[378819201,1755035467036,-892.39,0.00049589,120]
[378819202,1755035467047,-400.0,0.00049589,120]
[378819203,1755035467057,-1133.94,0.00049589,120]
[378819204,1755035467066,-400.0,0.00049589,120]
[378819205,1755035467076,-400.0,0.00049589,120]
[378819206,1755035467086,-400.0,0.00049589,120]
[378819207,1755035467095,-400.0,0.00049589,120]
[378819208,1755035467104,-400.0,0.00049589,120]
[378819209,1755035467113,-1489.43,0.00049589,120]
[378819210,1755035467123,-400.0,0.00049589,120]
[378819211,1755035467132,-544.88490516,0.00049589,120]
[378819212,1755035467141,-560.7,0.00049589,120]
[378819213,1755035467150,-151.0,0.00049589,120]
[378819214,1755035467159,-400.0,0.00049589,120]
[378819215,1755035467169,-605.5,0.00049589,120]
[378819216,1755035467178,-400.0,0.00049589,120]
[378819217,1755035467187,-400.0,0.00049589,120]
[378819218,1755035467197,-400.0,0.00049589,30]
[378819219,1755035467205,-400.0,0.00049589,120]
[378819220,1755035467215,-1566.47,0.00049589,120]
[378819221,1755035467224,-968.33,0.00049589,120]
[378819222,1755035467233,-400.0,0.00049589,120]
[378819223,1755035467242,-151.0,0.00049589,120]
[378819224,1755035467251,-400.0,0.00049589,120]
[378819225,1755035467261,-1217.75,0.00049589,120]
[378819226,1755035467270,-400.0,0.00049589,120]
[378819227,1755035467279,-400.0,0.00049589,120]
[378819228,1755035467289,-400.0,0.00049589,120]
[378819229,1755035467298,-530.64,0.00049589,120]
[378819230,1755035467308,-440.97,0.00049589,120]
[378819231,1755035467318,-400.0,0.00049589,120]
[378819232,1755035467326,-764.51,0.00049589,120]
[378819233,1755035467336,-1380.3,0.00049589,120]
[378819234,1755035467345,-400.0,0.00049589,120]
[378819235,1755035467355,-528.09,0.00049589,120]
[378819236,1755035467364,-400.0,0.00049589,120]
[378819237,1755035467373,-400.0,0.00049589,120]
[378819238,1755035467382,-400.0,0.00049589,120]
[378819239,1755035467391,-1249.72,0.00049589,120]
[378819240,1755035467401,-1248.76,0.00049589,120]
[378819241,1755035467410,-151.0,0.00049589,120]
[378819242,1755035467420,-400.0,0.00049589,120]
[378819243,1755035467429,-400.0,0.00049589,120]
[378819244,1755035467439,-931.08,0.00049589,120]
[378819245,1755035467448,-400.0,0.00049589,120]
[378819246,1755035467458,-654.69,0.00049589,120]
[378819247,1755035467467,-405.70591954,0.00049589,120]
[378819248,1755035467477,-15525.84,0.00049589,120]
[378819249,1755035467487,-400.0,0.00049589,120]
[378819250,1755035467496,-400.0,0.00049589,120]
[378819251,1755035467506,-414.89,0.00049589,120]
[378819252,1755035467515,-400.0,0.00049589,120]
[378819253,1755035467525,-151.0,0.00049589,120]
[378819254,1755035467535,-613.56,0.00049589,120]
[378819255,1755035467544,-400.0,0.00049589,120]
[378819256,1755035467554,-760.38,0.00049589,120]
[378819257,1755035467564,-1356.08,0.00049589,120]
[378819258,1755035467573,-400.0,0.00049589,120]
[378819259,1755035467583,-610.36,0.00049589,120]
[378819260,1755035467594,-517.78,0.00049589,120]
[378819261,1755035467604,-400.0,0.00049589,120]
[378819262,1755035467614,-400.0,0.00049589,120]
[378819263,1755035467624,-3068.86,0.00049589,120]
[378819264,1755035467633,-723.02,0.00049589,120]
[378819265,1755035467643,-400.0,0.00049589,120]
[378819266,1755035467654,-400.0,0.00049589,120]
[378819267,1755035467666,-400.0,0.00049589,120]
[378819268,1755035467675,-460.0,0.00049589,120]
[378819269,1755035467685,-400.0,0.00049589,120]
[378819270,1755035467694,-460.0,0.00049589,120]
[378819271,1755035467704,-152.239659,0.00049589,120]
[378819272,1755035467714,-707.02,0.00049589,120]
[378819273,1755035467723,-400.0,0.00049589,120]
[378819274,1755035467733,-2129.94,0.00049589,120]
[378819275,1755035467743,-400.0,0.00049589,120]
[378819276,1755035467754,-442.55009925,0.00049589,120]
[378819277,1755035467764,-1167.19,0.00049589,120]
[378819278,1755035467774,-400.0,0.00049589,120]
[378819279,1755035467783,-400.0,0.00049589,120]
[378819280,1755035467793,-400.0,0.00049589,120]
[378819281,1755035467803,-1176.46,0.00049589,120]
[378819282,1755035467812,-400.0,0.00049589,120]
[378819283,1755035467821,-661.72,0.00049589,120]
[378819284,1755035467831,-400.0,0.00049589,120]
[378819285,1755035467841,-804.64,0.00049589,120]
[378819286,1755035467850,-3029.86,0.00049589,120]
[378819287,1755035467859,-1154.4,0.00049589,120]
[378819288,1755035467869,-403.32454886,0.00049589,120]
[378819289,1755035467878,-400.0,0.00049589,120]
[378819290,1755035467888,-400.0,0.00049589,120]
[378819291,1755035467897,-400.0,0.00049589,120]
[378819292,1755035467907,-400.0,0.00049589,120]
[378819293,1755035467916,-827.95,0.00049589,120]
[378819294,1755035467926,-400.0,0.00049589,120]
[378819295,1755035467935,-400.0,0.00049589,120]
[378819296,1755035467946,-400.0,0.00049589,120]
[378819297,1755035467956,-400.0,0.00049589,120]
[378819298,1755035467967,-400.0,0.00049589,120]
[378819299,1755035467976,-1114.74,0.00049589,120]
[378819300,1755035467984,-400.0,0.00049589,120]
[378819301,1755035467994,-400.0,0.00049589,120]
[378819302,1755035468008,-485.83,0.00049589,120]
[378819303,1755035468019,-400.0,0.00049589,120]
[378819304,1755035468028,-400.0,0.00049589,120]
[378819305,1755035468037,-1000.0,0.00049589,120]
[378819306,1755035468049,-1574.78,0.00049589,120]
[378819307,1755035468058,-3960.21,0.00049589,120]
[378819308,1755035468068,-400.0,0.00049589,120]
[378819309,1755035468079,-400.0,0.00049589,120]
[378819310,1755035468088,-400.0,0.00049589,120]
[378819311,1755035468097,-1366.35,0.00049589,120]
[378819312,1755035468106,-235.36445315,0.00049589,120]
[378819313,1755035468118,-400.0,0.00049589,120]
[378819314,1755035468128,-400.0,0.00049589,120]
[378819315,1755035468137,-809.44,0.00049589,120]
[378819316,1755035468147,-677.38,0.00049589,120]
[378819317,1755035468156,-1415.11,0.00049589,120]
[378819318,1755035468166,-420.1957762,0.00049589,120]
[378819319,1755035468176,-410.57,0.00049589,120]
[378819320,1755035468185,-400.0,0.00049589,120]
[378819321,1755035468194,-858.4,0.00049589,120]
[378819322,1755035468203,-400.0,0.00049589,120]
[378819323,1755035468213,-408.06,0.00049589,120]
[378819324,1755035468223,-400.0,0.00049589,120]
[378819325,1755035468232,-151.0,0.00049589,120]
[378819326,1755035468241,-392.9580955,0.00049589,120]
[378819327,1755035468250,-711.67,0.00049589,120]
[378819328,1755035468260,-400.0,0.00049589,120]
[378819329,1755035468269,-1081.08,0.00049589,120]
[378819330,1755035468278,-151.784263,0.00049589,120]
[378819331,1755035468287,-400.0,0.00049589,120]
[378819332,1755035468297,-400.0,0.00049589,120]
[378819333,1755035468307,-400.0,0.00049589,120]
[378819334,1755035468318,-652.11,0.00049589,120]
[378819335,1755035468327,-400.0,0.00049589,120]
[378819336,1755035468337,-624.04,0.00049589,120]
[378819337,1755035468348,-400.0,0.00049589,120]
[378819338,1755035468359,-402.50549009,0.00049589,120]
[378819339,1755035468369,-400.0,0.00049589,120]
[378819340,1755035468378,-1042.22,0.00049589,120]
[378819341,1755035468388,-645.66,0.00049589,120]
[378819342,1755035468397,-400.0,0.00049589,120]
[378819343,1755035468406,-410.0,0.00049589,120]
[378819344,1755035468416,-400.0,0.00049589,120]
[378819345,1755035468427,-400.0,0.00049589,120]
[378819346,1755035468436,-400.0,0.00049589,120]
[378819347,1755035468445,-1639.19,0.00049589,120]
[378819348,1755035468454,-244.407303,0.00049589,120]
[378819349,1755035468464,-400.0,0.00049589,120]
[378819350,1755035468472,-400.0,0.00049589,120]
[378819351,1755035468481,-516.83,0.00049589,120]
[378819352,1755035468492,-1444.29,0.00049589,120]
[378819353,1755035468501,-2110.0,0.00049589,30]
[378819354,1755035468510,-400.0,0.00049589,120]
[378819355,1755035468520,-400.0,0.00049589,120]
[378819356,1755035468530,-244.407303,0.00049589,120]
[378819357,1755035468540,-816.8,0.00049589,120]
[378819358,1755035468550,-586.67,0.00049589,120]
[378819359,1755035468560,-981.9,0.00049589,120]
[378819360,1755035468570,-400.0,0.00049589,120]
[378819361,1755035468579,-400.0,0.00049589,120]
[378819362,1755035468588,-700.0,0.00049589,120]
[378819363,1755035468598,-988.8,0.00049589,120]
[378819364,1755035468608,-402.71,0.00049589,120]
[378819365,1755035468618,-400.0,0.00049589,120]
[378819366,1755035468628,-864.27,0.00049589,120]
[378819367,1755035468638,-1387.27,0.00049589,120]
[378819368,1755035468650,-460.0,0.00049589,120]
[378819369,1755035468662,-400.0,0.00049589,120]
[378819370,1755035468673,-945.88,0.00049589,120]
[378819371,1755035468682,-400.0,0.00049589,120]
[378819372,1755035468692,-400.0,0.00049589,120]
[378819373,1755035468701,-400.0,0.00049589,120]
[378819374,1755035468712,-400.0,0.00049589,120]
[378819375,1755035468722,-400.0,0.00049589,120]
[378819376,1755035468731,-1858.35,0.00049589,120]
[378819377,1755035468743,-400.0,0.00049589,120]
[378819378,1755035468752,-1086.84,0.00049589,120]
[378819379,1755035468762,-474.26,0.00049589,120]
[378819380,1755035468772,-766.96,0.00049589,120]
[378819381,1755035468782,-2000.0,0.00049589,30]
[378819382,1755035468791,-400.0,0.00049589,120]
[378819383,1755035468801,-829.6,0.00049589,120]
[378819384,1755035468811,-400.0,0.00049589,120]
[378819385,1755035468820,-407.49,0.00049589,120]
[378819386,1755035468831,-577.85,0.00049589,120]
[378819387,1755035468840,-1053.95,0.00049589,120]
[378819388,1755035468850,-400.0,0.00049589,120]
[378819389,1755035468859,-400.0,0.00049589,120]
[378819390,1755035468869,-408.67,0.00049589,120]
[378819391,1755035468879,-400.0,0.00049589,120]
[378819392,1755035468889,-400.0,0.00049589,120]
[378819393,1755035468899,-400.0,0.00049589,120]
[378819394,1755035468909,-400.0,0.00049589,120]
[378819395,1755035468919,-1152.44,0.00049589,120]
[378819396,1755035468929,-400.0,0.00049589,120]
[378819397,1755035468939,-400.0,0.00049589,120]
[378819398,1755035468948,-400.0,0.00049589,120]
[378819399,1755035468959,-535.28729149,0.00049589,120]
[378819400,1755035468968,-400.0,0.00049589,120]
[378819401,1755035468978,-1661.4,0.00049589,120]
[378819402,1755035468988,-632.74,0.00049589,120]
[378819403,1755035468999,-1409.06,0.00049589,120]
[378819404,1755035469012,-400.0,0.00049589,120]
[378819405,1755035469022,-282.863588,0.00049589,120]
[378819406,1755035469033,-400.0,0.00049589,120]
[378819407,1755035469043,-400.0,0.00049589,120]
[378819408,1755035469053,-864.81,0.00049589,120]
[378819409,1755035469063,-400.0,0.00049589,120]
[378819410,1755035469074,-400.0,0.00049589,120]
[378819411,1755035469083,-580.35,0.00049589,120]
[378819412,1755035469093,-282.863588,0.00049589,120]
[378819413,1755035469103,-400.0,0.00049589,120]
[378819414,1755035469112,-400.0,0.00049589,120]
[378819415,1755035469122,-400.0,0.00049589,120]
[378819416,1755035469131,-400.0,0.00049589,120]
[378819417,1755035469141,-400.0,0.00049589,120]
[378819418,1755035469151,-535.75,0.00049589,120]
[378819419,1755035469161,-400.0,0.00049589,120]
[378819420,1755035469171,-1301.64,0.00049589,120]
[378819421,1755035469182,-400.0,0.00049589,120]
[378819422,1755035469191,-2834.74,0.00049589,120]
[378819423,1755035469201,-669.34,0.00049589,120]
[378819424,1755035469212,-786.84,0.00049589,120]
[378819425,1755035469222,-178.11522175,0.00049589,120]
[378819426,1755035469232,-417.11665565,0.00049589,120]
[378819427,1755035469242,-400.0,0.00049589,120]
[378819428,1755035469251,-400.0,0.00049589,120]
[378819429,1755035469261,-2546.57,0.00049589,120]
[378819430,1755035469271,-400.0,0.00049589,120]
[378819431,1755035469281,-699.36,0.00049589,120]
[378819432,1755035469291,-400.0,0.00049589,120]
[378819433,1755035469300,-1569.66,0.00049589,120]
[378819434,1755035469310,-460.0,0.00049589,120]
[378819435,1755035469320,-410.33,0.00049589,120]
[378819436,1755035469329,-400.0,0.00049589,120]
[378819437,1755035469339,-400.0,0.00049589,120]
[378819438,1755035469349,-1703.03,0.00049589,120]
[378819439,1755035469359,-400.0,0.00049589,120]
[378819440,1755035469368,-400.0,0.00049589,120]
[378819441,1755035469378,-1726.47,0.00049589,120]
[378819442,1755035469388,-400.0,0.00049589,120]
[378819443,1755035469398,-712.34,0.00049589,120]
[378819444,1755035469407,-400.0,0.00049589,120]
[378819445,1755035469418,-400.0,0.00049589,120]
[378819446,1755035469430,-430.06,0.00049589,120]
[378819447,1755035469442,-1145.57,0.00049589,120]
[378819448,1755035469452,-400.0,0.00049589,120]
[378819449,1755035469462,-492.38,0.00049589,120]
[378819450,1755035469471,-400.0,0.00049589,120]
[378819451,1755035469481,-400.0,0.00049589,120]
[378819452,1755035469491,-3184.28,0.00049589,120]
[378819453,1755035469500,-400.0,0.00049589,120]
[378819454,1755035469510,-516.91,0.00049589,120]
[378819455,1755035469519,-400.0,0.00049589,120]
[378819456,1755035469529,-400.0,0.00049589,120]
[378819457,1755035469539,-400.0,0.00049589,120]
[378819458,1755035469549,-782.47,0.00049589,120]
[378819459,1755035469559,-2150.7,0.00049589,120]
[378819460,1755035469568,-2958.5,0.00049589,120]
[378819461,1755035469578,-400.0,0.00049589,120]
[378819462,1755035469587,-400.0,0.00049589,120]
[378819463,1755035469597,-400.0,0.00049589,120]
[378819464,1755035469607,-400.0,0.00049589,120]
[378819465,1755035469616,-400.0,0.00049589,120]
[378819466,1755035469626,-1459.59,0.00049589,120]
[378819467,1755035469636,-400.0,0.00049589,120]
[378819468,1755035469645,-460.0,0.00049589,120]
[378819469,1755035469655,-400.0,0.00049589,120]
[378819470,1755035469665,-400.0,0.00049589,120]
[378819471,1755035469674,-2010.63,0.00049589,120]
[378819472,1755035469684,-492.51,0.00049589,118]
[378819473,1755035469693,-581.22,0.00049589,120]
[378819474,1755035469703,-400.0,0.00049589,120]
[378819475,1755035469712,-400.0,0.00049589,120]
[378819476,1755035469722,-400.0,0.00049589,120]
[378819477,1755035469732,-400.0,0.00049589,120]
[378819478,1755035469741,-450.86,0.00049589,120]
[378819479,1755035469751,-1000.0,0.00049589,120]
[378819480,1755035469761,-1059.03,0.00049589,120]
[378819481,1755035469770,-400.0,0.00049589,120]
[378819482,1755035469780,-400.0,0.00049589,120]
[378819483,1755035469791,-400.0,0.00049589,120]
[378819484,1755035469800,-1323.4,0.00049589,120]
[378819485,1755035469811,-1483.15,0.00049589,120]
[378819486,1755035469821,-400.0,0.00049589,120]
[378819487,1755035469831,-400.0,0.00049589,120]
[378819488,1755035469840,-1698.71,0.00049589,120]
[378819489,1755035469850,-400.0,0.00049589,120]
[378819490,1755035469860,-923.7,0.00049589,120]
[378819491,1755035469869,-400.0,0.00049589,120]
[378819492,1755035469879,-2052.46,0.00049589,120]
[378819493,1755035469889,-400.0,0.00049589,120]
[378819494,1755035469898,-400.0,0.00049589,120]
[378819495,1755035469908,-400.0,0.00049589,120]
[378819496,1755035469918,-1218.77,0.00049589,120]
[378819497,1755035469928,-400.0,0.00049589,120]
[378819498,1755035469938,-463.08018338,0.00049589,120]
[378819499,1755035469948,-400.0,0.00049589,120]
[378819500,1755035469959,-458.0,0.00049589,120]
[378819501,1755035469968,-400.0,0.00049589,120]
[378819502,1755035469978,-545.6,0.00049589,120]
[378819503,1755035469987,-400.0,0.00049589,120]
[378819504,1755035469998,-1208.99,0.00049589,120]
[378819505,1755035470010,-856.03,0.00049589,120]
[378819506,1755035470020,-975.68,0.00049589,120]
[378819507,1755035470030,-1088.26,0.00049589,120]
[378819508,1755035470042,-1281.63,0.00049589,120]
[378819509,1755035470052,-400.0,0.00049589,120]
[378819510,1755035470062,-400.0,0.00049589,120]
[378819511,1755035470072,-529.76,0.00049589,120]
[378819512,1755035470083,-400.0,0.00049589,120]
[378819513,1755035470094,-400.0,0.00049589,120]
[378819514,1755035470103,-400.0,0.00049589,120]
[378819515,1755035470113,-1574.11,0.00049589,120]
[378819516,1755035470123,-1727.75,0.00049589,120]
[378819517,1755035470133,-400.0,0.00049589,120]
[378819518,1755035470143,-400.0,0.00049589,120]
[378819519,1755035470152,-400.0,0.00049589,120]
[378819520,1755035470162,-400.0,0.00049589,30]
[378819521,1755035470173,-1103.84,0.00049589,120]
[378819522,1755035470183,-453.81,0.00049589,120]
[378819523,1755035470192,-1929.74,0.00049589,120]
[378819524,1755035470202,-1016.23,0.00049589,120]
[378819525,1755035470212,-400.0,0.00049589,120]
[378819526,1755035470221,-1364.35,0.00049589,120]
[378819527,1755035470231,-400.0,0.00049589,120]
[378819528,1755035470242,-400.0,0.00049589,120]
[378819529,1755035470252,-400.0,0.00049589,120]
[378819530,1755035470261,-406.11,0.00049589,120]
[378819531,1755035470271,-400.0,0.00049589,120]
[378819532,1755035470281,-1749.31,0.00049589,120]
[378819533,1755035470291,-400.0,0.00049589,120]
[378819534,1755035470300,-1053.04,0.00049589,120]
[378819535,1755035470310,-400.0,0.00049589,120]
[378819536,1755035470320,-400.0,0.00049589,120]
[378819537,1755035470330,-1512.24,0.00049589,120]
[378819538,1755035470339,-400.0,0.00049589,120]
[378819539,1755035470350,-757.56,0.00049589,120]
[378819540,1755035470360,-400.0,0.00049589,120]
[378819541,1755035470370,-801.62,0.00049589,120]
[378819542,1755035470380,-1209.39,0.00049589,120]
[378819543,1755035470390,-400.0,0.00049589,120]
[378819544,1755035470400,-422.99,0.00049589,120]
[378819545,1755035470410,-584.58,0.00049589,120]
[378819546,1755035470420,-400.0,0.00049589,120]
[378819547,1755035470430,-400.0,0.00049589,120]
[378819548,1755035470440,-607.88,0.00049589,120]
[378819549,1755035470450,-400.0,0.00049589,120]
[378819550,1755035470461,-400.0,0.00049589,120]
[378819551,1755035470471,-500.0,0.00049589,120]
[378819552,1755035470480,-491.29,0.00049589,120]
[378819553,1755035470490,-400.0,0.00049589,120]
[378819554,1755035470501,-460.0,0.00049589,120]
[378819555,1755035470511,-685.18,0.00049589,120]
[378819556,1755035470522,-2514.02,0.00049589,14]
[378819557,1755035470532,-400.0,0.00049589,120]
[378819558,1755035470543,-400.0,0.00049589,120]
[378819559,1755035470553,-400.0,0.00049589,120]
[378819560,1755035470563,-400.0,0.00049589,120]
[378819561,1755035470574,-400.0,0.00049589,120]
[378819562,1755035470584,-1192.66,0.00049589,120]
[378819563,1755035470594,-431.53,0.00049589,120]
[378819564,1755035470603,-400.0,0.00049589,120]
[378819565,1755035470614,-1000.0,0.00049589,120]
[378819566,1755035470624,-400.0,0.00049589,120]
[378819567,1755035470634,-1031.82,0.00049589,120]
[378819568,1755035470644,-400.0,0.00049589,120]
[378819569,1755035470654,-400.0,0.00049589,120]
[378819570,1755035470664,-907.63,0.00049589,120]
[378819571,1755035470674,-446.56,0.00049589,120]
[378819572,1755035470684,-400.0,0.00049589,120]
[378819573,1755035470693,-400.0,0.00049589,120]
[378819574,1755035470703,-400.0,0.00049589,120]
[378819575,1755035470713,-400.0,0.00049589,120]
[378819576,1755035470724,-400.0,0.00049589,120]
[378819577,1755035470733,-400.0,0.00049589,120]
[378819578,1755035470743,-4873.78,0.00049589,120]
[378819579,1755035470753,-657.9,0.00049589,120]
[378819580,1755035470763,-400.0,0.00049589,120]
[378819581,1755035470773,-400.0,0.00049589,120]
[378819582,1755035470783,-799.85,0.00049589,120]
[378819583,1755035470793,-4181.67,0.00049589,120]
[378819584,1755035470803,-400.0,0.00049589,120]
[378819585,1755035470813,-400.0,0.00049589,120]
[378819586,1755035470823,-908.11,0.00049589,120]
[378819587,1755035470832,-1034.79,0.00049589,120]
[378819588,1755035470842,-400.0,0.00049589,2]
[378819589,1755035470852,-502.01,0.00049589,120]
[378819590,1755035470862,-400.0,0.00049589,120]
[378819591,1755035470872,-400.0,0.00049589,120]
[378819592,1755035470881,-400.0,0.00049589,120]
[378819593,1755035470892,-400.0,0.00049589,120]
[378819594,1755035471073,-400.0,0.00049589,120]
[378819595,1755035471102,-400.0,0.00049589,120]
[378819596,1755035471112,-400.0,0.00049589,120]
[378819597,1755035471122,-460.0,0.00049589,120]
[378819598,1755035471131,-400.0,0.00049589,120]
[378819599,1755035471140,-400.0,0.00049589,120]
[378819600,1755035471150,-1065.54,0.00049589,120]
[378819601,1755035471159,-400.0,0.00049589,120]
[378819602,1755035471169,-400.0,0.00049589,120]
[378819603,1755035471178,-400.0,0.00049589,120]
[378819604,1755035471187,-400.0,0.00049589,120]
[378819605,1755035471196,-808.85,0.00049589,120]
[378819606,1755035471205,-400.0,0.00049589,120]
[378819607,1755035471215,-615.58,0.00049589,120]
[378819608,1755035471224,-400.0,0.00049589,120]
[378819609,1755035471233,-1787.79,0.00049589,120]
[378819610,1755035471243,-1633.08,0.00049589,120]
[378819611,1755035471252,-1000.0,0.00049589,2]
[378819612,1755035471261,-400.0,0.00049589,120]
[378819613,1755035471271,-1584.08,0.00049589,120]
[378819614,1755035471279,-957.65,0.00049589,120]
[378819615,1755035471289,-400.0,0.00049589,120]
[378819616,1755035471298,-400.0,0.00049589,120]
[378819617,1755035471317,-400.0,0.00049589,120]
[378819618,1755035471329,-464.9211364,0.00049589,120]
[378819619,1755035471339,-500.0,0.00049615,120]
[378819620,1755035471350,-1105.51,0.00049616,120]
[378819621,1755035471361,-1105.51,0.00049616,120]
[378819622,1755035471374,-1105.51,0.00049616,120]
[378819623,1755035471384,-1105.51,0.00049616,120]
[378819624,1755035471394,-1105.51,0.00049616,120]
[378819625,1755035471403,-1105.51,0.00049616,120]
[378819626,1755035471413,-1105.51,0.00049616,120]
[378819627,1755035471423,-1105.51,0.00049616,120]
[378819628,1755035471432,-1105.51,0.00049616,120]
[378819629,1755035471442,-1105.51,0.00049616,120]
[378819630,1755035471454,-1105.51,0.00049616,120]
[378819631,1755035471464,-1105.51,0.00049616,120]
[378819632,1755035471475,-1105.51,0.00049616,120]
[378819633,1755035471486,-1105.51,0.00049616,120]
[378819634,1755035471495,-1105.51,0.00049616,120]
[378819635,1755035471505,-1105.51,0.00049616,120]
[378819636,1755035471515,-1105.51,0.00049616,120]
[378819637,1755035471524,-1105.51,0.00049616,120]
[378819638,1755035471534,-1105.51,0.00049616,120]
[378819639,1755035471544,-1105.51,0.00049616,120]
[378819640,1755035471553,-1105.51,0.00049616,120]
[378819641,1755035471562,-1105.51,0.00049616,120]
[378819642,1755035471572,-1105.51,0.00049616,120]
[378819643,1755035471581,-1105.59,0.00049616,120]
[378819644,1755035471590,-198.508529,0.00049616,120]
[378819645,1755035471599,-151.0,0.00049616,120]
[378819646,1755035471609,-151.0,0.00049616,120]
[378819647,1755035471618,-334.892098,0.00049616,120]
[378819648,1755035471627,-334.892098,0.00049616,120]
[378819649,1755035471637,-151.931946,0.00049616,120]
[378819650,1755035471647,-151.0,0.00049616,120]
[378819651,1755035471656,-500.0,0.00049616,120]